Workbook

Sheet 총공사비 2백(세대), 1백(공용) 이하
A1: (붙임2) 노후 옥내급수관 개선 지원 공사비 지원 기준
A2: ※ 세대에 지원되는 지원금은 세대당 최대 2백만원(공용배관의 경우 1백만원)과 공사비의 95% 중 낮은 금액으로 지원한다.(실무지침 p.4, 10 참조)
A3: <<세대내배관 개선: 총 공사비가 2,105천원 이하인 경우>>
A4: (1) (광역: 세대내배관 개선) 총 공사비의 95%가 2,000천원 이하인 경우 | I4: (1) (기초: 세대내배관 개선) 총 공사비의 95%가 2,000천원 이하인 경우
A5: ※ 노란색셀에 총공사비용(2,105천원보다 작은 금액)을 입력하여 부담액 계산 | I5: ※ 노란색셀에 총공사비용(2,105천원보다 작은 금액)을 입력하여 부담액 계산
B6: 2,100,000 | C6: 0.95 | D6: =B6*C6 -> 1,995,000 | J6: 2,104,000 | K6: 0.95 | L6: =J6*K6 -> 1,998,800
A7: 구분 | D7: 부담액 | E7: 부담률 | I7: 구분 | L7: 부담액 | M7: 부담률
A8: 국비부담액 | B8: =B6 -> 2,100,000 | C8: 0.3 | D8: =B8*C8 -> 630,000 | E8: =D8/$D$12 -> 30.0% | I8: 국비부담액 | J8: =J6 -> 2,104,000 | K8: 0.6 | L8: =J8*K8 -> 1,262,400 | M8: =L8/$L$12 -> 60.0%
A9: 지방비부담액 | B9: =B6 -> 2,100,000 | C9: 0.65 | D9: =B9*C9 -> 1,365,000 | E9: =D9/$D$12 -> 65.0% | I9: 지방비부담액 | J9: =J6 -> 2,104,000 | K9: 0.35 | L9: =J9*K9 -> 736,400 | M9: =L9/$L$12 -> 35.0%
A10: 국비+지방비 | D10: =SUM(D8:D9) -> 1,995,000 | I10: 국비+지방비 | L10: =SUM(L8:L9) -> 1,998,800
A11: 자부담액 | B11: =B6 -> 2,100,000 | C11: 0.05 | D11: =B11*C11 -> 105,000 | E11: =D11/$D$12 -> 5.0% | I11: 자부담액 | J11: =J6 -> 2,104,000 | K11: 0.05 | L11: 105,200 | M11: 5.0%
A12: 총계 | D12: =D8+D9+D11 -> 2,100,000 | E12: =D12/$D$12 -> 100.0% | I12: 총계 | L12: =L8+L9+L11 -> 2,104,000 | M12: 100.0%
A14: <<공용배관 개선: 총 공사비가 1,053천원 이하인 경우>>
A15: (2) (광역: 공용배관 개선) 총 공사비의 95%가 1,000천원 이하인 경우 | I15: (2) (기초: 공용배관 개선) 총 공사비의 95%가 1,000천원 이하인 경우
A16: ※ 노란색셀에 총 공사세대와 세대당 공사비용(1,053천원보다 작은 금액)을 입력하여 부담액 계산 | I16: ※ 노란색셀에 총 공사세대와 세대당 공사비용(1,053천원보다 작은 금액)을 입력하여 부담액 계산
A17: 1세대 | B17: 1,052,000 | C17: 0.95 | D17: =A17*B17*C17 -> 999,400 | I17: 1세대 | J17: 1,052,000 | K17: 0.95 | L17: =I17*J17*K17 -> 999,400
A18: 구분 | D18: 부담액 | E18: 부담률 | I18: 구분 | L18: 부담액 | M18: 부담률
A19: 국비부담액 | B19: =B17 -> 1,052,000 | C19: 0.3 | D19: =A17*B19*C19 -> 315,600 | E19: =D19/$D$23 -> 30.0% | I19: 국비부담액 | J19: =J17 -> 1,052,000 | K19: 0.6 | L19: =I17*J19*K19 -> 631,200 | M19: =L19/$L$23 -> 60.0%
A20: 지방비부담액 | B20: =B17 -> 1,052,000 | C20: 0.65 | D20: =A17*B20*C20 -> 683,800 | E20: =D20/$D$23 -> 65.0% | I20: 지방비부담액 | J20: =J17 -> 1,052,000 | K20: 0.35 | L20: =I17*J20*K20 -> 368,200 | M20: =L20/$L$23 -> 35.0%
A21: 국비+지방비 | D21: =SUM(D19:D20) -> 999,400 | I21: 국비+지방비 | L21: =SUM(L19:L20) -> 999,400
A22: 자부담액 | B22: =B17 -> 1,052,000 | C22: 0.05 | D22: =A17*B22*C22 -> 52,600 | E22: 5.0% | I22: 자부담액 | J22: =J17 -> 1,052,000 | K22: 0.05 | L22: =I17*J22*K22 -> 52,600 | M22: 5.0%
A23: 총계 | D23: =D19+D20+D22 -> 1,052,000 | E23: 100.0% | I23: 총계 | L23: =L19+L20+L22 -> 1,052,000 | M23: 100.0%

Sheet 총공사비 2백(세대), 1백(공용) 초과
A1: (붙임2) 노후 옥내급수관 개선 지원 공사비 지원 기준
A2: ※ 세대에 지원되는 지원금은 세대당 최대 2백만원(공용배관의 경우 1백만원)과 공사비의 95% 중 낮은 금액으로 지원한다.(실무지침 p.4, 10 참조)
A3: <<세대내배관 개선: 총 공사비가 2,105천원을 초과하는 경우>>
A4: (1) (광역: 세대내배관 개선) 총 공사비의 95%가 2,000천원 초과하는 경우 | I4: (1) (기초: 세대내배관 개선) 총 공사비의 95%가 2,000천원 초과하는 경우
A5: ※ 노란색셀에 총공사비용(2,105천원보다 큰 금액)을 입력하여 부담액 계산 | I5: ※ 노란색셀에 총공사비용(2,105천원보다 큰 금액)을 입력하여 부담액 계산
B6: 2,106,000 | C6: 0.95 | D6: =B6*C6 -> 2,000,700 | J6: 2,106,000 | K6: 0.95 | L6: =J6*K6 -> 2,000,700
A7: 구분 | D7: 부담액 | E7: 부담률 | I7: 구분 | L7: 부담액 | M7: 부담률
A8: 국비부담액 | D8: =2000000*30/95 -> 631,579 | E8: =D8/$D$14 -> 30.0% | I8: 국비부담액 | L8: =2000000*60/95 -> 1,263,158 | M8: =L8/$L$14 -> 60.0%
A9: 지방비부담액 | D9: =2000000*65/95 -> 1,368,421 | E9: =D9/$D$14 -> 65.0% | I9: 지방비부담액 | L9: =2000000*35/95 -> 736,842 | M9: =L9/$L$14 -> 35.0%
A10: 국비+지방비 | D10: =SUM(D8:D9) -> 2,000,000 | I10: 국비+지방비 | L10: =SUM(L8:L9) -> 2,000,000
A11: 자부담액 | B11: =B6 -> 2,106,000 | C11: 0.05 | D11: =B11*C11 -> 105,300 | I11: 자부담액 | J11: =J6 -> 2,106,000 | K11: 0.05 | L11: =J11*K11 -> 105,300
B12: =B11 -> 2,106,000 | C12: 0.95 | D12: =B12*C12-2000000 -> 700 | J12: =J11 -> 2,106,000 | K12: 0.95 | L12: =J12*K12-2000000 -> 700
D13: =SUM(D11:D12) -> 106,000 | E13: =D13/$D$14 -> 5.0% | L13: =SUM(L11:L12) -> 106,000 | M13: =L13/$L$14 -> 5.0%
A14: 총계 | D14: =D8+D9+D13 -> 2,106,000 | E14: =D14/$D$14 -> 100.0% | I14: 총계 | L14: =L8+L9+L13 -> 2,106,000 | M14: =L14/$L$14 -> 100.0%
A16: <<공용배관 개선: 총 공사비가 1,053천원을 초과하는 경우>>
A17: (2) (광역: 공용배관 개선) 총 공사비의 95%가 1,000천원 초과하는 경우 | I17: (2) (기초: 공용배관 개선) 총 공사비의 95%가 1,000천원 초과하는 경우
A18: ※ 노란색셀에 총 공사세대와 세대당 공사비용(1,053천원보다 큰 금액)을 입력하여 부담액 계산 | I18: ※ 노란색셀에 총 공사세대와 세대당 공사비용(1,053천원보다 큰 금액)을 입력하여 부담액 계산
A19: 1세대 | B19: 1,055,000 | C19: 0.95 | D19: =A19*B19*C19 -> 1,002,250 | I19: 1세대 | J19: 1,055,000 | K19: 0.95 | L19: =I19*J19*K19 -> 1,002,250
A20: 구분 | D20: 부담액 | E20: 부담률 | I20: 구분 | L20: 부담액 | M20: 부담률
A21: 국비부담액 | D21: =A19*(1000000*30/95) -> 315,789 | E21: =D21/$D$26 -> 29.9% | I21: 국비부담액 | L21: =I19*(1000000*60/95) -> 631,579 | M21: =L21/$L$26 -> 59.9%
A22: 지방비부담액 | D22: =A19*(1000000*65/95) -> 684,211 | E22: =D22/$D$26 -> 64.9% | I22: 지방비부담액 | L22: =I19*(1000000*35/95) -> 368,421 | M22: =L22/$L$26 -> 34.9%
A23: 국비+지방비 | D23: =SUM(D21:D22) -> 1,000,000 | I23: 국비+지방비 | L23: =SUM(L21:L22) -> 1,000,000
A24: 자부담액 | B24: 1,000,000 | D24: =(A19*B19)-(A19*B24) -> 55,000 | I24: 자부담액 | J24: 1,000,000 | L24: =(I19*J19)-(I19*J24) -> 55,000
D25: =SUM(D24:D24) -> 55,000 | E25: =D25/$D$26 -> 5.2% | L25: =SUM(L24:L24) -> 55,000 | M25: =L25/$L$26 -> 5.2%
A26: 총계 | D26: =D21+D22+D25 -> 1,055,000 | E26: =D26/$D$26 -> 100.0% | I26: 총계 | L26: =L21+L22+L25 -> 1,055,000 | M26: =L26/$L$26 -> 100.0%
